fUSD/lending_fUSD_20260127
["ID","MTS","AMOUNT","RATE_DAILY","PERIOD"]
[403756784,1769522632888,-500.0,0.00043378,120]
[403756785,1769522632965,-623.98,0.00043378,120]
[403756786,1769522633044,-503.97522996,0.00043378,120]
[403756787,1769522633122,-500.0,0.00043378,120]
[403756788,1769522633198,-500.0,0.00043378,120]
[403756789,1769522633280,-500.0,0.00043378,120]
[403756790,1769522633360,-500.0,0.00043378,120]
[403756791,1769522633437,-328.36091499,0.00043378,120]
[403756792,1769522633510,-500.0,0.00043378,120]
[403756793,1769522633582,-535.10599913,0.00043378,120]
[403756794,1769522633650,-502.48024122,0.00043378,120]
[403756795,1769522633720,-500.0,0.00043378,120]
[403756796,1769522633795,-510.4609473,0.00043378,120]
[403756797,1769522633875,-500.0,0.00043378,120]
[403756798,1769522633953,-500.0,0.00043378,120]
[403756799,1769522634034,-500.0,0.00043378,120]
[403756800,1769522634117,-637.15091012,0.00043378,120]
[403756801,1769522634198,-500.0,0.00043378,120]
[403756802,1769522634280,-500.0,0.00043378,120]
[403756803,1769522634356,-500.0,0.00043378,120]
[403756804,1769522634429,-500.0,0.00043378,120]
[403756805,1769522634501,-284.66985328,0.00043378,120]
[403756806,1769522634574,-533.80889527,0.00043378,120]
[403756807,1769522634647,-500.0,0.00043378,120]
[403756808,1769522634722,-516.60591877,0.00043378,120]
[403756809,1769522634797,-500.0,0.00043378,120]
[403756810,1769522634871,-505.9591417,0.00043378,120]
[403756811,1769522634949,-500.0,0.00043378,120]
[403756812,1769522635029,-511.34889421,0.00043378,120]
[403756813,1769522635105,-500.0,0.00043378,120]
[403756814,1769522635179,-516.7951799,0.00043378,120]
[403756815,1769522635255,-640.45052115,0.00043378,120]
[403756816,1769522635663,-545.14997193,0.00043378,120]
[403756817,1769522635743,-520.2,0.00043378,120]
[403756818,1769522635820,-507.57772814,0.00043378,120]
[403756819,1769522635899,-500.0,0.00043378,120]
[403756820,1769522635978,-585.12811673,0.00043378,120]
[403756821,1769522636053,-645.19514322,0.00043378,120]
[403756822,1769522636122,-540.87314889,0.00043378,120]
[403756823,1769522636191,-1404.37,0.00043378,120]
[403756824,1769522636263,-1404.37,0.00043378,120]
[403756825,1769522636334,-1404.37,0.00043378,120]
[403756826,1769522636402,-588.22,0.00043378,120]
[403756827,1769522636474,-500.0,0.00043378,120]
[403756828,1769522636540,-1404.37,0.00043378,120]
[403756829,1769522636607,-509.7996001,0.00043378,120]
[403756830,1769522636669,-1404.37,0.00043378,120]
[403756831,1769522636736,-1404.37,0.00043378,120]
[403756832,1769522636812,-1404.37,0.00043378,120]
[403756833,1769522636887,-510.81,0.00043378,120]
[403756834,1769522636958,-1404.37,0.00043378,120]
[403756835,1769522637031,-1404.37,0.00043378,120]
[403756836,1769522637105,-1404.37,0.00043378,120]
[403756837,1769522637182,-1404.37,0.00043378,120]
[403756838,1769522637262,-1404.37,0.00043378,120]
[403756839,1769522637338,-1404.37,0.00043378,120]
[403756840,1769522637409,-1404.37,0.00043378,120]
[403756841,1769522637476,-1404.37,0.00043378,120]
[403756842,1769522637539,-1404.37,0.00043378,120]
[403756843,1769522637607,-1404.37,0.00043378,120]
[403756844,1769522637680,-522.31929863,0.00043378,120]
[403756845,1769522637751,-1404.37,0.00043378,120]
[403756846,1769522637823,-1404.37,0.00043378,120]
[403756847,1769522637895,-1404.37,0.00043378,120]
[403756848,1769522637967,-1404.37,0.00043378,120]
[403756849,1769522638039,-500.0,0.00043378,120]
[403756850,1769522638108,-1404.37,0.00043378,120]
[403756851,1769522638173,-503.4293592,0.00043378,120]
[403756852,1769522638239,-500.0,0.00043378,120]
[403756853,1769522638309,-500.0,0.00043378,120]
[403756854,1769522638378,-1404.37,0.00043378,120]
[403756855,1769522638444,-1404.57,0.00043378,120]
[403756856,1769522638510,-503.85558926,0.00043378,120]
[403756857,1769522638575,-510.00258645,0.00043378,120]
[403756858,1769522638636,-553.59109522,0.00043378,120]
[403756859,1769522638699,-500.0,0.00043378,120]
[403756860,1769522638762,-514.89808597,0.00043378,120]
[403756861,1769522638824,-500.0,0.00043378,120]
[403756862,1769522638890,-500.0,0.00043378,120]
[403756863,1769522638959,-500.0,0.00043378,120]
[403756864,1769522639032,-500.0,0.00043378,120]
[403756865,1769522639106,-606.36,0.00043378,120]
[403756866,1769522639185,-600.72,0.00043378,120]
[403756867,1769522639265,-527.10287183,0.00043378,120]
[403756868,1769522639342,-515.28056009,0.00043378,120]
[403756869,1769522639418,-500.0,0.00043378,120]
[403756870,1769522639490,-500.0,0.00043378,120]
[403756871,1769522639560,-153.6,0.00043378,120]
[403756872,1769522639629,-500.0,0.00043378,120]
[403756873,1769522639697,-500.0,0.00043378,120]
[403756874,1769522639763,-500.0,0.00043378,120]
[403756875,1769522639829,-500.0,0.00043378,120]
[403756876,1769522639902,-500.0,0.00043378,120]
[403756877,1769522639974,-508.03608743,0.00043378,120]
[403756878,1769522640046,-500.0,0.00043378,120]
[403756879,1769522640121,-500.0,0.00043378,120]
[403756880,1769522640197,-535.17,0.00043378,120]
[403756881,1769522640288,-500.0,0.00043378,120]
[403756882,1769522640373,-447.61047544,0.00043378,120]
[403756883,1769522640456,-500.0,0.00043378,120]
[403756884,1769522640538,-508.40329664,0.00043378,120]
[403756885,1769522640613,-500.0,0.00043378,120]
[403756886,1769522640688,-500.0,0.00043378,120]
[403756887,1769522640763,-500.0,0.00043378,120]
[403756888,1769522640840,-500.0,0.00043378,120]
[403756889,1769522640921,-500.0,0.00043378,120]
[403756890,1769522641004,-505.65338346,0.00043378,120]
[403756891,1769522641080,-500.0,0.00043378,120]
[403756892,1769522641161,-515.92663084,0.00043378,120]
[403756893,1769522641242,-500.0,0.00043378,120]
[403756894,1769522641321,-500.0,0.00043378,120]
[403756895,1769522641398,-522.14072657,0.00043378,120]
[403756896,1769522641478,-508.86881449,0.00043378,120]
[403756897,1769522641563,-500.0,0.00043378,120]
[403756898,1769522641644,-510.24784654,0.00043378,120]
[403756899,1769522641726,-500.0,0.00043378,120]
[403756900,1769522641811,-500.0,0.00043378,120]
[403756901,1769522641897,-520.66365368,0.00043378,120]
[403756902,1769522641980,-564.47603919,0.00043378,120]
[403756903,1769522642062,-505.31060109,0.00043378,120]
[403756904,1769522642148,-562.34602586,0.00043378,120]
[403756905,1769522642231,-500.0,0.00043378,120]
[403756906,1769522642311,-541.66174929,0.00043378,120]
[403756907,1769522642390,-526.93875548,0.00043378,120]
[403756908,1769522642472,-500.0,0.00043378,120]
[403756909,1769522642553,-500.0,0.00043378,120]
[403756910,1769522642629,-500.0,0.00043378,120]
[403756911,1769522643014,-500.0,0.00043378,120]
[403756912,1769522643094,-519.93262281,0.00043378,120]
[403756913,1769522643175,-500.0,0.00043378,120]
[403756914,1769522643263,-500.0,0.00043378,120]
[403756915,1769522643348,-517.29240635,0.00043378,120]
[403756916,1769522643434,-500.0,0.00043378,120]
[403756917,1769522643518,-520.06873543,0.00043378,120]
[403756918,1769522643602,-500.0,0.00043378,120]
[403756919,1769522643686,-500.0,0.00043378,120]
[403756920,1769522643767,-500.0,0.00043378,120]
[403756921,1769522643851,-500.0,0.00043378,120]
[403756922,1769522643938,-500.0,0.00043378,120]
[403756923,1769522644023,-574.5,0.00043378,120]
[403756924,1769522644110,-500.0,0.00043378,120]
[403756925,1769522644194,-500.0,0.00043378,120]
[403756926,1769522644276,-513.22481448,0.00043378,120]
[403756927,1769522644358,-500.0,0.00043378,120]
[403756928,1769522644444,-500.0,0.00043378,120]
[403756929,1769522644531,-505.7732422,0.00043378,120]
[403756930,1769522644616,-506.90870365,0.00043378,120]
[403756931,1769522644702,-573.14295632,0.00043378,120]
[403756932,1769522644790,-367.84798414,0.00043378,120]
[403756933,1769522644874,-500.0,0.00043378,120]
[403756934,1769522644963,-514.0887606,0.00043378,120]
[403756935,1769522645053,-560.9324307,0.00043378,120]
[403756936,1769522645142,-500.0,0.00043378,120]
[403756937,1769522645231,-518.42098939,0.00043378,120]
[403756938,1769522645317,-500.0,0.00043378,120]
[403756939,1769522645404,-500.0,0.00043378,120]
[403756940,1769522645496,-546.83,0.00043378,120]
[403756941,1769522645585,-524.22739865,0.00043378,120]
[403756942,1769522645677,-500.0,0.00043378,120]
[403756943,1769522645765,-500.0,0.00043378,120]
[403756944,1769522645854,-178.93633664,0.00043378,120]
[403756945,1769522645939,-558.00895971,0.00043378,120]
[403756946,1769522646024,-509.1682375,0.00043378,120]
[403756947,1769522646114,-500.0,0.00043378,120]
[403756948,1769522646202,-500.0,0.00043378,120]
[403756949,1769522646291,-216.60708301,0.00043378,120]
[403756950,1769522646381,-453.74787745,0.00043378,120]
[403756951,1769522646468,-552.60659309,0.00043378,120]
[403756952,1769522646550,-531.14,0.00043378,120]
[403756953,1769522646629,-506.05216322,0.00043378,120]
[403756954,1769522646710,-514.50123544,0.00043378,120]
[403756955,1769522646792,-500.0,0.00043378,120]
[403756956,1769522646874,-500.92509045,0.00043378,120]
[403756957,1769522646956,-510.36988434,0.00043378,120]
[403756958,1769522647036,-500.0,0.00043378,120]
[403756959,1769522647121,-524.78655943,0.00043378,120]
[403756960,1769522647207,-505.04817678,0.00043378,120]
[403756961,1769522647293,-521.93824706,0.00043378,120]
[403756962,1769522647379,-511.0009135,0.00043378,120]
[403756963,1769522647462,-500.0,0.00043378,120]
[403756964,1769522647546,-500.0,0.00043378,120]
[403756965,1769522647628,-500.0,0.00043378,120]
[403756966,1769522647789,-504.75280499,0.00043378,120]
[403756967,1769522647923,-500.0,0.00043378,120]
[403756968,1769522648062,-591.19,0.00043378,120]
[403756969,1769522648222,-540.08275833,0.00043378,120]
[403756970,1769522648396,-500.0,0.00043378,120]
[403756971,1769522648534,-514.93667234,0.00043378,120]
[403756972,1769522648663,-500.0,0.00043378,120]
[403756973,1769522648811,-506.38821743,0.00043378,120]
[403756974,1769522648959,-495.5013552,0.00043378,120]
[403756975,1769522649099,-500.0,0.00043378,120]
[403756976,1769522649228,-500.0,0.00043378,120]
[403756977,1769522649349,-500.0,0.00043378,120]
[403756978,1769522649463,-508.18330155,0.00043378,120]
[403756979,1769522649580,-500.0,0.00043378,120]
[403756980,1769522649693,-511.14400326,0.00043378,120]
[403756981,1769522649808,-500.0,0.00043378,120]
[403756982,1769522649926,-500.0,0.00043378,120]
[403756983,1769522650045,-517.2440774,0.00043378,120]
[403756984,1769522650159,-500.0,0.00043378,120]
[403756985,1769522650280,-500.0,0.00043378,120]
[403756986,1769522650394,-517.78071587,0.00043378,120]
[403756987,1769522650507,-519.85564656,0.00043378,120]
[403756988,1769522650621,-500.0,0.00043378,120]
[403756989,1769522650754,-171.0,0.00043378,120]
[403756990,1769522650876,-500.0,0.00043378,120]
[403756991,1769522650996,-500.0,0.00043378,120]
[403756992,1769522651117,-500.0,0.00043378,120]
[403756993,1769522651235,-500.0,0.00043378,120]
[403756994,1769522651365,-500.0,0.00043378,120]
[403756995,1769522651485,-507.69379571,0.00043378,120]
[403756996,1769522651601,-500.0,0.00043378,120]
[403756997,1769522651714,-500.0,0.00043378,120]
[403756998,1769522651829,-510.69461556,0.00043378,120]
[403756999,1769522651941,-509.07951174,0.00043378,120]
[403757000,1769522652060,-500.0,0.00043378,120]
[403757001,1769522652171,-500.0,0.00043378,120]
[403757002,1769522652285,-500.0,0.00043378,120]
[403757003,1769522652392,-513.85421579,0.00043378,120]
[403757004,1769522652498,-500.0,0.00043378,120]
[403757005,1769522652606,-515.17055247,0.00043378,120]
[403757006,1769522652712,-500.0,0.00043378,120]
[403757007,1769522652818,-500.0,0.00043378,120]
[403757008,1769522652921,-175.34066063,0.00043378,120]
[403757009,1769522653029,-520.74873466,0.00043378,120]
[403757010,1769522653129,-500.0,0.00043378,120]
[403757011,1769522653229,-506.13704112,0.00043378,120]
[403757012,1769522653332,-500.0,0.00043378,120]
[403757013,1769522653431,-500.0,0.00043378,120]
[403757014,1769522653528,-500.0,0.00043378,120]
[403757015,1769522653623,-511.22161892,0.00043378,120]
[403757016,1769522653722,-515.03971714,0.00043378,120]
[403757017,1769522653823,-507.31977736,0.00043378,120]
[403757018,1769522653927,-500.0,0.00043378,120]
[403757019,1769522654034,-500.0,0.00043378,120]
[403757020,1769522654146,-500.0,0.00043378,120]
[403757021,1769522654259,-503.30132728,0.00043378,120]
[403757022,1769522654372,-509.91829444,0.00043378,120]
[403757023,1769522654487,-506.72632606,0.00043378,120]
[403757024,1769522654602,-500.0,0.00043378,120]
[403757025,1769522654715,-500.0,0.00043378,120]
[403757026,1769522654832,-500.0,0.00043378,120]
[403757027,1769522654952,-187.42052932,0.00043378,120]
[403757028,1769522655051,-500.0,0.00043378,120]
[403757029,1769522655447,-540.4142232,0.00043378,120]
[403757030,1769522655536,-500.0,0.00043378,120]
[403757031,1769522655614,-510.99669652,0.00043378,120]
[403757032,1769522655695,-517.04067949,0.00043378,120]
[403757033,1769522655778,-500.10462242,0.00043378,120]
[403757034,1769522655862,-554.52586029,0.00043378,120]
[403757035,1769522655944,-515.02132998,0.00043378,120]
[403757036,1769522656028,-500.0,0.00043378,120]
[403757037,1769522656110,-500.0,0.00043378,120]
[403757038,1769522656191,-597.05585127,0.00043378,120]
[403757039,1769522656288,-513.54385471,0.00043378,120]
[403757040,1769522656370,-500.0,0.00043378,120]
[403757041,1769522656453,-500.0,0.00043378,120]
[403757042,1769522656536,-275.96,0.00043378,120]
[403757043,1769522656616,-506.02810533,0.00043378,120]
[403757044,1769522656699,-509.87109066,0.00043378,120]
[403757045,1769522656781,-549.01745054,0.00043378,120]
[403757046,1769522656864,-500.0,0.00043378,120]
[403757047,1769522656944,-524.13,0.00043378,120]
[403757048,1769522657028,-525.31767269,0.00043378,120]
[403757049,1769522657114,-500.0,0.00043378,120]
[403757050,1769522657198,-607.97,0.00043378,120]
[403757051,1769522657282,-500.0,0.00043378,120]
[403757052,1769522657367,-500.0,0.00043378,120]
[403757053,1769522657458,-515.24523401,0.00043378,120]
[403757054,1769522657545,-500.0,0.00043378,120]
[403757055,1769522657629,-511.57982784,0.00043378,120]
[403757056,1769522657714,-543.36507652,0.00043378,120]
[403757057,1769522657797,-502.79054536,0.00043378,120]
[403757058,1769522657881,-500.0,0.00043378,120]
[403757059,1769522657968,-500.0,0.00043378,120]
[403757060,1769522658053,-504.85505213,0.00043378,120]
[403757061,1769522658137,-500.0,0.00043378,120]
[403757062,1769522658223,-579.69030745,0.00043378,120]
[403757063,1769522658310,-500.0,0.00043378,120]
[403757064,1769522658397,-511.99478801,0.00043378,120]
[403757065,1769522658480,-500.0,0.00043378,120]
[403757066,1769522658562,-515.81999373,0.00043378,120]
[403757067,1769522658645,-511.62523691,0.00043378,120]
[403757068,1769522658740,-500.0,0.00043378,120]
[403757069,1769522658825,-500.0,0.00043378,120]
[403757070,1769522658910,-500.0,0.00043378,120]
[403757071,1769522658997,-566.14514326,0.00043378,120]
[403757072,1769522659087,-500.0,0.00043378,120]
[403757073,1769522659175,-518.87047686,0.00043378,120]
[403757074,1769522659262,-500.0,0.00043378,120]
[403757075,1769522659348,-509.21758156,0.00043378,120]
[403757076,1769522659433,-557.70766303,0.00043378,120]
[403757077,1769522659517,-500.0,0.00043378,120]
[403757078,1769522659601,-530.21339039,0.00043378,120]
[403757079,1769522659685,-512.02245724,0.00043378,120]
[403757080,1769522659772,-500.0,0.00043378,120]
[403757081,1769522659862,-500.0,0.00043378,120]
[403757082,1769522659953,-509.59681527,0.00043378,120]
[403757083,1769522660039,-500.0,0.00043378,120]
[403757084,1769522660125,-165.89,0.00043378,120]
[403757085,1769522660214,-500.0,0.00043378,120]
[403757086,1769522660297,-528.35769525,0.00043378,120]
[403757087,1769522660383,-500.0,0.00043378,120]
[403757088,1769522660468,-510.25488819,0.00043378,120]
[403757089,1769522660552,-500.0,0.00043378,120]
[403757090,1769522660635,-500.0,0.00043378,120]
[403757091,1769522660719,-500.0,0.00043378,120]
[403757092,1769522660805,-511.44761222,0.00043378,120]
[403757093,1769522660888,-500.0,0.00043378,120]
[403757094,1769522660971,-503.34043925,0.00043378,120]
[403757095,1769522661063,-500.0,0.00043378,120]
[403757096,1769522661149,-518.57044817,0.00043378,120]
[403757097,1769522661235,-520.7692482,0.00043378,120]
[403757098,1769522661319,-617.27954784,0.00043378,120]
[403757099,1769522661402,-500.0,0.00043378,120]
[403757100,1769522661489,-500.0,0.00043378,120]
[403757101,1769522661574,-515.77486018,0.00043378,120]
[403757102,1769522661659,-607.82,0.00043378,120]
[403757103,1769522661743,-500.0,0.00043378,120]
[403757104,1769522661829,-500.0,0.00043378,120]
[403757105,1769522661917,-500.0,0.00043378,120]
[403757106,1769522662002,-500.0,0.00043378,120]
[403757107,1769522662086,-503.79325134,0.00043378,120]
[403757108,1769522662171,-519.88196623,0.00043378,120]
[403757109,1769522662257,-500.0,0.00043378,120]
[403757110,1769522662342,-512.98850742,0.00043378,120]
[403757111,1769522662422,-500.0,0.00043378,120]
[403757112,1769522662503,-511.05132196,0.00043378,120]
[403757113,1769522662581,-500.0,0.00043378,120]
[403757114,1769522662659,-500.0,0.00043378,120]
[403757115,1769522662739,-509.61637497,0.00043378,120]
[403757116,1769522662819,-504.02446738,0.00043378,120]
[403757117,1769522662900,-500.0,0.00043378,120]
[403757118,1769522662984,-500.0,0.00043378,120]
[403757119,1769522663065,-527.84416208,0.00043378,120]
[403757120,1769522663623,-500.0,0.00043378,120]
[403757121,1769522663707,-500.0,0.00043378,120]
[403757122,1769522663790,-500.0,0.00043378,120]
[403757123,1769522663880,-517.56626955,0.00043378,120]
[403757124,1769522663965,-500.0,0.00043378,120]
[403757125,1769522664051,-505.86041811,0.00043378,120]
[403757126,1769522664139,-500.0,0.00043378,120]
[403757127,1769522664221,-516.89588276,0.00043378,120]
[403757128,1769522664303,-500.0,0.00043378,120]
[403757129,1769522664385,-505.95594438,0.00043378,120]
[403757130,1769522664469,-500.0,0.00043378,120]
[403757131,1769522664550,-500.0,0.00043378,120]
[403757132,1769522664630,-225.48958544,0.00043378,120]
[403757133,1769522664709,-524.67899397,0.00043378,120]
[403757134,1769522664790,-500.0,0.00043378,120]
[403757135,1769522664873,-500.0,0.00043378,120]
[403757136,1769522664956,-538.49623687,0.00043378,120]
[403757137,1769522665040,-500.0,0.00043378,120]
[403757138,1769522665124,-500.0,0.00043378,120]
[403757139,1769522665202,-500.0,0.00043378,120]
[403757140,1769522665282,-500.0,0.00043378,120]
[403757141,1769522665363,-500.0,0.00043378,120]
[403757142,1769522665446,-500.0,0.00043378,120]
[403757143,1769522665529,-189.93,0.00043378,120]
[403757144,1769522665608,-500.0,0.00043378,120]
[403757145,1769522665687,-500.0,0.00043378,120]
[403757146,1769522665769,-500.0,0.00043378,120]
[403757147,1769522665850,-500.0,0.00043378,120]
[403757148,1769522665931,-532.22423252,0.00043378,120]
[403757149,1769522666017,-500.0,0.00043378,120]
[403757150,1769522666099,-515.88571299,0.00043378,120]
[403757151,1769522666180,-518.40126149,0.00043378,120]
[403757153,1769522666259,-500.0,0.00043378,120]
[403757154,1769522666345,-197.38430173,0.00043378,120]
[403757156,1769522666432,-500.0,0.00043378,120]
[403757157,1769522666517,-500.0,0.00043378,120]
[403757158,1769522666599,-548.17259809,0.00043378,120]
[403757159,1769522666689,-500.0,0.00043378,120]
[403757161,1769522666774,-500.0,0.00043378,120]
[403757162,1769522666856,-515.18245247,0.00043378,120]
[403757164,1769522666934,-500.0,0.00043378,120]
[403757165,1769522667021,-500.0,0.00043378,120]
[403757166,1769522667105,-518.94278081,0.00043378,120]
[403757167,1769522667187,-500.0,0.00043378,120]
[403757168,1769522667274,-518.32583892,0.00043378,120]
[403757170,1769522667358,-500.0,0.00043378,120]
[403757171,1769522667441,-500.0,0.00043378,120]
[403757172,1769522667528,-507.46695525,0.00043378,120]
[403757174,1769522667608,-500.0,0.00043378,120]
[403757175,1769522667687,-500.0,0.00043378,120]
[403757176,1769522667770,-500.0,0.00043378,120]
[403757178,1769522667851,-500.0,0.00043378,120]
[403757179,1769522667935,-500.0,0.00043378,120]
[403757180,1769522668021,-532.05429204,0.00043378,120]
[403757182,1769522668099,-500.0,0.00043378,120]
[403757183,1769522668174,-500.0,0.00043378,120]
[403757184,1769522668251,-503.49078039,0.00043378,120]
[403757186,1769522668325,-537.45404208,0.00043378,120]
[403757187,1769522668627,-500.0,0.00043378,120]
[403757189,1769522668691,-500.0,0.00043378,120]
[403757190,1769522668762,-512.54154073,0.00043378,120]
[403757191,1769522668842,-547.36288648,0.00043378,120]
[403757192,1769522668922,-566.56137296,0.00043378,120]
[403757194,1769522669000,-500.0,0.00043378,120]
[403757195,1769522669081,-570.77,0.00043378,120]
[403757196,1769522669162,-500.0,0.00043378,120]
[403757197,1769522669254,-211.32,0.00043378,120]
[403757199,1769522669336,-500.0,0.00043378,120]
[403757200,1769522669413,-197.94765868,0.00043378,120]
[403757202,1769522669479,-536.67110881,0.00043378,120]
[403757203,1769522669548,-564.05,0.00043378,120]
[403757204,1769522669622,-513.44025729,0.00043378,120]
[403757205,1769522669701,-500.0,0.00043378,120]
[403757207,1769522669779,-500.0,0.00043378,120]
[403757208,1769522669858,-591.4665876,0.00043378,120]
[403757209,1769522669943,-500.0,0.00043378,90]
[403757211,1769522670014,-200.55,0.00043378,90]
[403757212,1769522670096,-500.0,0.00043378,120]
[403757213,1769522670176,-500.0,0.00043378,120]
[403757215,1769522670253,-500.0,0.00043378,120]
[403757216,1769522670336,-500.0,0.00043378,120]
[403757217,1769522670421,-502.28,0.00043378,120]
[403757219,1769522670498,-500.0,0.00043378,120]
[403757220,1769522670576,-500.0,0.00043378,120]
[403757221,1769522670655,-500.0,0.00043378,120]
[403757223,1769522670724,-500.0,0.00043378,120]
[403757224,1769522670800,-522.68,0.00043378,120]
[403757225,1769522670878,-500.0,0.00043378,120]
[403757226,1769522670962,-500.0,0.00043378,120]
[403757227,1769522671046,-500.0,0.00043378,120]
[403757228,1769522671131,-500.0,0.00043378,120]
[403757229,1769522671214,-500.0,0.00043378,120]
[403757230,1769522671295,-546.81719516,0.00043378,120]
[403757231,1769522671374,-500.0,0.00043378,120]
[403757232,1769522671453,-500.0,0.00043378,120]
[403757233,1769522671910,-513.51143797,0.00043378,120]
[403757234,1769522671990,-502.38,0.00043378,120]
[403757235,1769522672069,-500.0,0.00043378,30]
[403757236,1769522672147,-500.0,0.00043378,120]
[403757237,1769522672226,-500.0,0.00043378,120]
[403757238,1769522672304,-500.0,0.00043378,120]
[403757239,1769522672382,-500.0,0.00043378,120]
[403757240,1769522672458,-206.38,0.00043378,120]
[403757241,1769522672533,-500.0,0.00043378,120]
[403757242,1769522672607,-500.0,0.00043378,120]
[403757243,1769522672683,-500.0,0.00043378,120]
[403757244,1769522672761,-500.0,0.00043378,120]
[403757245,1769522672840,-500.0,0.00043378,120]
[403757246,1769522672920,-500.0,0.00043378,120]
[403757247,1769522673001,-500.0,0.00043378,120]
[403757248,1769522673080,-526.99,0.00043378,120]
[403757249,1769522673158,-500.0,0.00043378,120]
[403757250,1769522673238,-198.62,0.00043378,120]
[403757251,1769522673320,-500.0,0.00043378,120]
[403757252,1769522673401,-500.0,0.00043378,120]
[403757253,1769522673480,-500.0,0.00043378,120]
[403757254,1769522673561,-558.32,0.00043378,120]
[403757255,1769522673642,-537.22276685,0.00043378,120]
[403757256,1769522673721,-500.0,0.00043378,120]
[403757257,1769522673802,-514.9948168,0.00043378,120]
[403757258,1769522673882,-500.0,0.00043378,120]
[403757259,1769522673960,-565.21,0.00043378,120]
[403757260,1769522674039,-551.5617535,0.00043378,120]
[403757261,1769522674120,-500.0,0.00043378,120]
[403757262,1769522674199,-512.46731718,0.00043378,120]
[403757263,1769522674277,-500.0,0.00043378,120]
[403757264,1769522674356,-500.0,0.00043378,120]
[403757265,1769522674441,-541.62,0.00043378,120]
[403757266,1769522674529,-500.0,0.00043378,120]
[403757267,1769522674619,-500.0,0.00043378,120]
[403757268,1769522674705,-500.0,0.00043378,120]
[403757269,1769522674807,-500.0,0.00043378,120]
[403757270,1769522674896,-500.0,0.00043378,120]
[403757271,1769522674978,-505.01338452,0.00043378,120]
[403757272,1769522675061,-500.0,0.00043378,120]
[403757273,1769522675143,-631.51,0.00043378,120]
[403757274,1769522675226,-500.0,0.00043378,120]
[403757275,1769522675311,-500.0,0.00043378,120]
[403757276,1769522675395,-500.0,0.00043378,120]
[403757277,1769522675477,-511.60701913,0.00043378,120]
[403757278,1769522675556,-500.0,0.00043378,120]
[403757279,1769522675634,-500.0,0.00043378,120]
[403757280,1769522675713,-500.0,0.00043378,120]
[403757281,1769522675791,-349.56186059,0.00043378,120]
[403757282,1769522675872,-500.0,0.00043378,120]
[403757283,1769522675952,-500.0,0.00043378,120]
[403757284,1769522676031,-500.0,0.00043378,120]
[403757285,1769522676111,-477.56748735,0.00043378,120]
[403757286,1769522676189,-500.0,0.00043378,120]
[403757287,1769522676267,-500.0,0.00043378,120]
[403757288,1769522676346,-500.0,0.00043378,120]
[403757289,1769522676425,-527.3,0.00043378,120]
[403757290,1769522676506,-505.80500563,0.00043378,120]
[403757291,1769522676584,-500.0,0.00043378,120]
[403757292,1769522676662,-500.0,0.00043378,120]
[403757293,1769522676742,-504.67286069,0.00043378,120]
[403757294,1769522676825,-500.0,0.00043378,120]
[403757295,1769522676906,-513.39185286,0.00043378,120]
[403757296,1769522676987,-500.0,0.00043378,120]
[403757297,1769522677069,-500.0,0.00043378,120]
[403757298,1769522677148,-500.0,0.00043378,120]
[403757299,1769522677228,-500.0,0.00043378,120]
[403757300,1769522677307,-500.0,0.00043378,120]
[403757301,1769522677389,-500.0,0.00043378,120]